[Event "*** SCC Grand Prix: Titled Tuesday Blitz"]
[Site "Chess.com"]
[Date "2020.10.06"]
[Round "8"]
[White "GianmarcoVaR"]
[Black "The_Machine04"]
[Result "1-0"]
[WhiteElo "2476"]
[BlackElo "2326"]
[TimeControl "180+1"]
[EndTime "11:35:52 PDT"]
[Termination "GianmarcoVaR won on time"]

1. d4 {[%clk 0:03:00]} 1... d6 {[%clk 0:03:00.9]} 2. c4 {[%clk 0:02:59.4]} 2...
e5 {[%clk 0:03:00.1]} 3. Nf3 {[%clk 0:02:58.9]} 3... e4 {[%clk 0:02:59.9]} 4.
Ng5 {[%clk 0:02:59.1]} 4... f5 {[%clk 0:02:55.7]} 5. Nc3 {[%clk 0:02:57.3]} 5...
Be7 {[%clk 0:02:52.9]} 6. Nh3 {[%clk 0:02:57.4]} 6... Nf6 {[%clk 0:02:53.6]} 7.
Bg5 {[%clk 0:02:49.1]} 7... Be6 {[%clk 0:02:48.6]} 8. e3 {[%clk 0:02:49]} 8...
O-O {[%clk 0:02:41.8]} 9. Nf4 {[%clk 0:02:41.4]} 9... Bf7 {[%clk 0:02:37.9]} 10.
h4 {[%clk 0:02:38.6]} 10... h6 {[%clk 0:02:23.6]} 11. Bxf6 {[%clk 0:02:37.6]}
11... Bxf6 {[%clk 0:02:24.5]} 12. h5 {[%clk 0:02:38.2]} 12... c6 {[%clk
0:02:24.4]} 13. g4 {[%clk 0:02:29.4]} 13... Bg5 {[%clk 0:02:04.2]} 14. gxf5
{[%clk 0:01:54.1]} 14... Bxf4 {[%clk 0:01:59.4]} 15. exf4 {[%clk 0:01:55]} 15...
d5 {[%clk 0:01:58.9]} 16. Qg4 {[%clk 0:01:50.7]} 16... Qf6 {[%clk 0:01:55]} 17.
O-O-O {[%clk 0:01:44.8]} 17... Kh8 {[%clk 0:01:49.4]} 18. Rg1 {[%clk 0:01:37.9]}
18... Bg8 {[%clk 0:01:32.9]} 19. Rg3 {[%clk 0:01:28.4]} 19... Nd7 {[%clk
0:01:08.5]} 20. Be2 {[%clk 0:01:22.1]} 20... Nb6 {[%clk 0:01:00.7]} 21. Rdg1
{[%clk 0:01:20.9]} 21... Rf7 {[%clk 0:00:59]} 22. c5 {[%clk 0:01:20.2]} 22...
Nc8 {[%clk 0:00:55.8]} 23. Qg6 {[%clk 0:01:09.8]} 23... Qxg6 {[%clk 0:00:39.6]}
24. fxg6 {[%clk 0:00:48.2]} 24... Rxf4 {[%clk 0:00:39]} 25. f3 {[%clk
0:00:35.4]} 25... e3 {[%clk 0:00:20.5]} 26. Rg4 {[%clk 0:00:33.1]} 26... Rxg4
{[%clk 0:00:12.6]} 27. fxg4 {[%clk 0:00:33.4]} 27... Be6 {[%clk 0:00:11.4]} 28.
Rg3 {[%clk 0:00:32.3]} 28... Kg8 {[%clk 0:00:08.3]} 29. Rxe3 {[%clk 0:00:32.6]}
29... Bd7 {[%clk 0:00:08.5]} 30. b4 {[%clk 0:00:30.8]} 30... a6 {[%clk 0:00:08]}
31. Kb2 {[%clk 0:00:30.2]} 31... Kf8 {[%clk 0:00:07.9]} 32. Na4 {[%clk
0:00:23.9]} 32... Rb8 {[%clk 0:00:04.3]} 33. Kc3 {[%clk 0:00:08.4]} 33... Ne7
{[%clk 0:00:03.2]} 34. Nb2 {[%clk 0:00:08.8]} 34... Re8 {[%clk 0:00:01.9]} 35.
Nd3 {[%clk 0:00:08.8]} 35... Kg8 {[%clk 0:00:01.3]} 36. Ne5 {[%clk 0:00:09]}
36... Bc8 {[%clk 0:00:01.8]} 37. Nf7 {[%clk 0:00:08.2]} 37... Kf8 {[%clk
0:00:01.5]} 38. Nd6 {[%clk 0:00:07.5]} 38... Rd8 {[%clk 0:00:01.6]} 39. a4
{[%clk 0:00:06.5]} 1-0

[Event "*** SCC Grand Prix: Titled Tuesday Blitz"]
[Site "Chess.com"]
[Date "2020.10.06"]
[Round "8"]
[White "Kavyev_Ruslan"]
[Black "Jumbo"]
[Result "0-1"]
[WhiteElo "2582"]
[BlackElo "2728"]
[TimeControl "180+1"]
[EndTime "11:35:54 PDT"]
[Termination "Jumbo won by resignation"]

1. d4 {[%clk 0:03:00.9]} 1... e6 {[%clk 0:03:00.1]} 2. c4 {[%clk 0:03:00.4]}
2... d5 {[%clk 0:03:00.6]} 3. g3 {[%clk 0:03:00.2]} 3... dxc4 {[%clk 0:02:56.3]}
4. Nf3 {[%clk 0:03:00.4]} 4... a6 {[%clk 0:02:56.2]} 5. Bg2 {[%clk 0:03:00.7]}
5... b5 {[%clk 0:02:47.2]} 6. Ne5 {[%clk 0:03:00.3]} 6... c6 {[%clk 0:02:37.9]}
7. Nc3 {[%clk 0:03:00.3]} 7... Ne7 {[%clk 0:02:23.9]} 8. b3 {[%clk 0:02:56.3]}
8... cxb3 {[%clk 0:02:20]} 9. axb3 {[%clk 0:02:57.2]} 9... Nd5 {[%clk
0:02:18.8]} 10. Ne4 {[%clk 0:02:56]} 10... Be7 {[%clk 0:02:13.1]} 11. O-O {[%clk
0:02:52.7]} 11... O-O {[%clk 0:02:08]} 12. Qc2 {[%clk 0:02:52.5]} 12... a5
{[%clk 0:02:02.9]} 13. Bb2 {[%clk 0:02:41.6]} 13... Qb6 {[%clk 0:01:55.1]} 14.
Rfc1 {[%clk 0:02:34.9]} 14... Rd8 {[%clk 0:01:41.3]} 15. Nc5 {[%clk 0:01:58.3]}
15... Qc7 {[%clk 0:01:32.1]} 16. e3 {[%clk 0:01:49.4]} 16... Bf8 {[%clk
0:01:18.6]} 17. h4 {[%clk 0:01:18.4]} 17... h6 {[%clk 0:01:14.3]} 18. Ra2 {[%clk
0:01:02.2]} 18... Nb4 {[%clk 0:01:11.8]} 19. Qb1 {[%clk 0:01:02.1]} 19... Nxa2
{[%clk 0:01:10.9]} 20. Qxa2 {[%clk 0:01:03]} 20... Rd5 {[%clk 0:00:57.2]} 21.
Bxd5 {[%clk 0:00:59.3]} 21... exd5 {[%clk 0:00:55.8]} 22. Qb1 {[%clk 0:00:51.5]}
22... Bd6 {[%clk 0:00:53.5]} 23. Ncd3 {[%clk 0:00:49.6]} 23... a4 {[%clk
0:00:49.8]} 24. bxa4 {[%clk 0:00:48.1]} 24... bxa4 {[%clk 0:00:50.7]} 25. Qc2
{[%clk 0:00:44.3]} 25... a3 {[%clk 0:00:50.1]} 26. Ba1 {[%clk 0:00:44.7]} 26...
Bf5 {[%clk 0:00:49.2]} 27. Qb3 {[%clk 0:00:40.5]} 27... Bxd3 {[%clk 0:00:32.9]}
28. Nxd3 {[%clk 0:00:36.9]} 28... Bxg3 {[%clk 0:00:28.1]} 29. fxg3 {[%clk
0:00:23.6]} 29... Qxg3+ {[%clk 0:00:29]} 30. Kf1 {[%clk 0:00:24]} 30... Qxe3
{[%clk 0:00:27.5]} 31. Re1 {[%clk 0:00:16.4]} 31... Qf3+ {[%clk 0:00:26.3]} 32.
Kg1 {[%clk 0:00:16.9]} 32... Qg3+ {[%clk 0:00:24.2]} 33. Kf1 {[%clk 0:00:17.1]}
33... Nd7 {[%clk 0:00:23.6]} 34. Nc5 {[%clk 0:00:17.1]} 34... Qf4+ {[%clk
0:00:22]} 35. Kg2 {[%clk 0:00:15.9]} 35... Qd2+ {[%clk 0:00:16.7]} 36. Kf1
{[%clk 0:00:14.3]} 36... Qf4+ {[%clk 0:00:14.1]} 37. Kg2 {[%clk 0:00:14.3]}
37... Nxc5 {[%clk 0:00:14.6]} 38. dxc5 {[%clk 0:00:14.4]} 38... Qxh4 {[%clk
0:00:14.9]} 39. Qe3 {[%clk 0:00:06.3]} 39... Ra4 {[%clk 0:00:12.2]} 40. Rf1
{[%clk 0:00:03]} 40... Rg4+ {[%clk 0:00:10.8]} 41. Kf3 {[%clk 0:00:03.4]} 41...
Rg3+ {[%clk 0:00:09.7]} 0-1

[Event "*** SCC Grand Prix: Titled Tuesday Blitz"]
[Site "Chess.com"]
[Date "2020.10.06"]
[Round "8"]
[White "Mr_Sinigami"]
[Black "Sven_Tica"]
[Result "0-1"]
[WhiteElo "2493"]
[BlackElo "2652"]
[TimeControl "180+1"]
[EndTime "11:35:55 PDT"]
[Termination "Sven_Tica won on time"]

1. d4 {[%clk 0:01:38.7]} 1... d5 {[%clk 0:02:49.4]} 2. Nf3 {[%clk 0:01:38]} 2...
e6 {[%clk 0:02:46.5]} 3. Bf4 {[%clk 0:01:37.4]} 3... Bd6 {[%clk 0:02:46.9]} 4.
Bg3 {[%clk 0:01:36.9]} 4... Qe7 {[%clk 0:02:47.3]} 5. e3 {[%clk 0:01:26.3]} 5...
Bxg3 {[%clk 0:02:46.3]} 6. hxg3 {[%clk 0:01:25.7]} 6... Qb4+ {[%clk 0:02:46.9]}
7. Nbd2 {[%clk 0:00:55.6]} 7... Qxb2 {[%clk 0:02:45.9]} 8. Bd3 {[%clk 0:00:56]}
8... Nf6 {[%clk 0:02:45.8]} 9. Ne5 {[%clk 0:00:53.4]} 9... Nbd7 {[%clk
0:02:45.6]} 10. f4 {[%clk 0:00:52.9]} 10... a6 {[%clk 0:02:32]} 11. Kf2 {[%clk
0:00:45.5]} 11... c5 {[%clk 0:02:23.7]} 12. Rb1 {[%clk 0:00:27.2]} 12... Qa3
{[%clk 0:02:23.1]} 13. dxc5 {[%clk 0:00:19.2]} 13... Nxc5 {[%clk 0:02:17.5]} 14.
g4 {[%clk 0:00:18.8]} 14... g6 {[%clk 0:01:54.1]} 15. g5 {[%clk 0:00:17.8]}
15... Nfd7 {[%clk 0:01:54.2]} 16. Ndf3 {[%clk 0:00:18]} 16... Qa4 {[%clk
0:01:38.8]} 17. Qe2 {[%clk 0:00:13.6]} 17... b5 {[%clk 0:01:34.8]} 18. Kg3
{[%clk 0:00:11.2]} 18... Bb7 {[%clk 0:01:30.7]} 19. Nxd7 {[%clk 0:00:10.8]}
19... Nxd7 {[%clk 0:01:31.6]} 20. Nd4 {[%clk 0:00:10.7]} 20... Qa3 {[%clk
0:01:27.2]} 21. Rh2 {[%clk 0:00:09.7]} 21... Qe7 {[%clk 0:01:26.8]} 22. Rbh1
{[%clk 0:00:09.3]} 22... e5 {[%clk 0:01:24.9]} 23. Nb3 {[%clk 0:00:05.2]} 23...
e4 {[%clk 0:01:24.8]} 24. Rxh7 {[%clk 0:00:05]} 24... Rxh7 {[%clk 0:01:24.2]}
25. Rxh7 {[%clk 0:00:05.9]} 25... exd3 {[%clk 0:01:18]} 26. Rh8+ {[%clk
0:00:05.5]} 26... Nf8 {[%clk 0:01:18.4]} 27. cxd3 {[%clk 0:00:06.3]} 27... O-O-O
{[%clk 0:01:18.7]} 28. Qc2+ {[%clk 0:00:06]} 28... Kb8 {[%clk 0:01:18.9]} 29.
Qc3 {[%clk 0:00:05.7]} 29... Qxe3+ {[%clk 0:01:15]} 30. Kh2 {[%clk 0:00:05.5]}
30... Qxf4+ {[%clk 0:01:14.8]} 31. Kg1 {[%clk 0:00:05.6]} 31... Ne6 {[%clk
0:01:11.4]} 32. Rxd8+ {[%clk 0:00:04.4]} 32... Nxd8 {[%clk 0:01:12.3]} 33. Nc5
{[%clk 0:00:04.8]} 33... d4 {[%clk 0:01:09.4]} 34. Nd7+ {[%clk 0:00:04.4]} 34...
Ka8 {[%clk 0:01:05.1]} 35. Qc5 {[%clk 0:00:04.5]} 35... Qe3+ {[%clk 0:00:53.8]}
36. Kh2 {[%clk 0:00:04.5]} 36... Qf4+ {[%clk 0:00:40.6]} 37. Kg1 {[%clk
0:00:04.5]} 37... Nc6 {[%clk 0:00:38.2]} 38. Nb6+ {[%clk 0:00:03.8]} 38... Kb8
{[%clk 0:00:38.4]} 39. Qf8+ {[%clk 0:00:02.7]} 39... Ka7 {[%clk 0:00:38]} 40.
Nd7 {[%clk 0:00:03]} 40... Qc1+ {[%clk 0:00:33.2]} 41. Kh2 {[%clk 0:00:02.6]}
41... Qf4+ {[%clk 0:00:33.4]} 42. Kg1 {[%clk 0:00:02.9]} 42... Qxg5 {[%clk
0:00:33.7]} 43. Qd6 {[%clk 0:00:01.5]} 43... Qe3+ {[%clk 0:00:24]} 44. Kh2
{[%clk 0:00:01.7]} 44... Qg5 {[%clk 0:00:22.3]} 45. Qc7 {[%clk 0:00:01.1]} 45...
Qd8 {[%clk 0:00:19]} 0-1

[Event "*** SCC Grand Prix: Titled Tuesday Blitz"]
[Site "Chess.com"]
[Date "2020.10.06"]
[Round "8"]
[White "Shuvalov"]
[Black "Falcon28dz"]
[Result "0-1"]
[WhiteElo "2404"]
[BlackElo "2262"]
[TimeControl "180+1"]
[EndTime "11:35:57 PDT"]
[Termination "Falcon28dz won by resignation"]

1. Nf3 {[%clk 0:03:00.9]} 1... Nf6 {[%clk 0:02:59.1]} 2. c4 {[%clk 0:02:58.3]}
2... e6 {[%clk 0:02:58.5]} 3. g3 {[%clk 0:02:58.2]} 3... b6 {[%clk 0:02:57.2]}
4. Bg2 {[%clk 0:02:59.1]} 4... Bb7 {[%clk 0:02:56.7]} 5. O-O {[%clk 0:03:00]}
5... c5 {[%clk 0:02:38]} 6. Nc3 {[%clk 0:02:58.4]} 6... Be7 {[%clk 0:02:34.4]}
7. d4 {[%clk 0:02:58.2]} 7... cxd4 {[%clk 0:02:33.6]} 8. Qxd4 {[%clk 0:02:59.1]}
8... Nc6 {[%clk 0:02:29]} 9. Qf4 {[%clk 0:02:58.2]} 9... O-O {[%clk 0:02:17.2]}
10. Rd1 {[%clk 0:02:54.8]} 10... d5 {[%clk 0:01:24.5]} 11. cxd5 {[%clk 0:02:51]}
11... exd5 {[%clk 0:01:23]} 12. Nd4 {[%clk 0:02:46.8]} 12... Nxd4 {[%clk
0:01:00.7]} 13. Qxd4 {[%clk 0:02:47.7]} 13... Bc5 {[%clk 0:00:57.3]} 14. Qh4
{[%clk 0:02:46.3]} 14... Ne4 {[%clk 0:00:41.9]} 15. Nxe4 {[%clk 0:02:13.4]}
15... Qxh4 {[%clk 0:00:39.7]} 16. gxh4 {[%clk 0:02:14.3]} 16... dxe4 {[%clk
0:00:40.4]} 17. Bg5 {[%clk 0:02:04.7]} 17... f6 {[%clk 0:00:37.7]} 18. Bf4
{[%clk 0:02:04.6]} 18... Rfd8 {[%clk 0:00:33.8]} 19. Bc7 {[%clk 0:02:01]} 19...
Rxd1+ {[%clk 0:00:33.1]} 20. Rxd1 {[%clk 0:02:01.9]} 20... Rc8 {[%clk
0:00:33.9]} 21. Bf4 {[%clk 0:01:54.5]} 21... Bc6 {[%clk 0:00:34.4]} 22. Bh3
{[%clk 0:01:51]} 22... Re8 {[%clk 0:00:32.6]} 23. Bd7 {[%clk 0:01:46.4]} 23...
Bxd7 {[%clk 0:00:26.2]} 24. Rxd7 {[%clk 0:01:47.3]} 24... Re7 {[%clk 0:00:27.1]}
25. Rd8+ {[%clk 0:01:36.8]} 25... Kf7 {[%clk 0:00:26.6]} 26. e3 {[%clk 0:01:22]}
26... Ke6 {[%clk 0:00:20.2]} 27. Kf1 {[%clk 0:01:18.9]} 27... Rd7 {[%clk
0:00:19.4]} 28. Ra8 {[%clk 0:01:16]} 28... a5 {[%clk 0:00:18.8]} 29. Ke2 {[%clk
0:01:16]} 29... h6 {[%clk 0:00:17.5]} 30. h5 {[%clk 0:01:15.2]} 30... Kf5 {[%clk
0:00:16.7]} 31. h3 {[%clk 0:01:09.5]} 31... Bb4 {[%clk 0:00:16.9]} 32. a3 {[%clk
0:01:07.3]} 32... Rd2+ {[%clk 0:00:15.9]} 33. Kf1 {[%clk 0:01:07.5]} 33... Bc5
{[%clk 0:00:16.1]} 34. Ra7 {[%clk 0:01:02.7]} 34... Rxb2 {[%clk 0:00:14.3]} 35.
Rxg7 {[%clk 0:01:02.3]} 35... Bxa3 {[%clk 0:00:13]} 36. Bxh6 {[%clk 0:01:00.8]}
36... Bf8 {[%clk 0:00:12.1]} 37. Rg6 {[%clk 0:00:57.4]} 37... Bxh6 {[%clk
0:00:11.9]} 38. Rxh6 {[%clk 0:00:58.3]} 38... a4 {[%clk 0:00:12.3]} 39. Rh7
{[%clk 0:00:55.3]} 39... a3 {[%clk 0:00:12.4]} 40. Ra7 {[%clk 0:00:55.1]} 40...
a2 {[%clk 0:00:12.9]} 41. Kg2 {[%clk 0:00:55.5]} 41... Kg5 {[%clk 0:00:12.6]}
42. Kg3 {[%clk 0:00:52]} 42... Kxh5 {[%clk 0:00:13]} 43. f3 {[%clk 0:00:45.1]}
43... exf3 {[%clk 0:00:12.3]} 44. Kxf3 {[%clk 0:00:46]} 44... b5 {[%clk
0:00:13.2]} 45. Ra5 {[%clk 0:00:37.2]} 45... Kh4 {[%clk 0:00:12.7]} 46. Ke4
{[%clk 0:00:31.6]} 46... b4 {[%clk 0:00:12.7]} 47. Kd3 {[%clk 0:00:30.4]} 47...
b3 {[%clk 0:00:12.8]} 48. Kc3 {[%clk 0:00:30.7]} 48... Rb1 {[%clk 0:00:13.2]}
49. Ra4+ {[%clk 0:00:27.4]} 49... Kxh3 {[%clk 0:00:13.2]} 50. Ra3 {[%clk
0:00:24.9]} 50... a1=Q+ {[%clk 0:00:12.9]} 51. Rxa1 {[%clk 0:00:25.2]} 51...
Rxa1 {[%clk 0:00:13.8]} 52. Kxb3 {[%clk 0:00:26.1]} 52... Re1 {[%clk 0:00:14.2]}
53. Kc4 {[%clk 0:00:26.2]} 53... Rxe3 {[%clk 0:00:14.4]} 54. Kd4 {[%clk
0:00:26.6]} 54... Re8 {[%clk 0:00:14.3]} 0-1

[Event "*** SCC Grand Prix: Titled Tuesday Blitz"]
[Site "Chess.com"]
[Date "2020.10.06"]
[Round "8"]
[White "Msb2"]
[Black "LiemLe"]
[Result "1-0"]
[WhiteElo "2936"]
[BlackElo "2986"]
[TimeControl "180+1"]
[EndTime "11:36:00 PDT"]
[Termination "Msb2 won by resignation"]

1. d4 {[%clk 0:03:00.9]} 1... Nf6 {[%clk 0:02:59.5]} 2. c4 {[%clk 0:03:00.8]}
2... e6 {[%clk 0:03:00]} 3. Nc3 {[%clk 0:03:01]} 3... d5 {[%clk 0:02:58.5]} 4.
cxd5 {[%clk 0:03:01.1]} 4... exd5 {[%clk 0:02:59.4]} 5. Bg5 {[%clk 0:03:01.3]}
5... c6 {[%clk 0:02:59.8]} 6. e3 {[%clk 0:03:01.9]} 6... Bf5 {[%clk 0:03:00.3]}
7. Qf3 {[%clk 0:03:02]} 7... Bg6 {[%clk 0:03:00.6]} 8. Bxf6 {[%clk 0:03:02.4]}
8... Qxf6 {[%clk 0:03:01.4]} 9. Qxf6 {[%clk 0:03:02.7]} 9... gxf6 {[%clk
0:03:02.3]} 10. h4 {[%clk 0:03:02.4]} 10... Nd7 {[%clk 0:02:57.4]} 11. h5 {[%clk
0:03:02.3]} 11... Bf5 {[%clk 0:02:57.7]} 12. Nge2 {[%clk 0:03:02.3]} 12... Bd6
{[%clk 0:02:50.8]} 13. f4 {[%clk 0:03:02.2]} 13... Nb6 {[%clk 0:02:37.4]} 14.
Ng3 {[%clk 0:02:59.5]} 14... Be6 {[%clk 0:02:37.3]} 15. Kf2 {[%clk 0:02:54.1]}
15... h6 {[%clk 0:02:23.6]} 16. Bd3 {[%clk 0:02:54]} 16... Rg8 {[%clk
0:02:22.9]} 17. Nf5 {[%clk 0:02:48.7]} 17... Bxf5 {[%clk 0:02:20.9]} 18. Bxf5
{[%clk 0:02:49.6]} 18... Kf8 {[%clk 0:02:08.9]} 19. Ne2 {[%clk 0:02:44.5]} 19...
Re8 {[%clk 0:02:01.4]} 20. b3 {[%clk 0:02:33]} 20... Re7 {[%clk 0:01:38.3]} 21.
Rac1 {[%clk 0:02:25]} 21... Bb4 {[%clk 0:01:31.5]} 22. Rc2 {[%clk 0:02:22.4]}
22... Na8 {[%clk 0:01:32]} 23. g4 {[%clk 0:02:19.9]} 23... Nc7 {[%clk
0:01:30.8]} 24. Ng3 {[%clk 0:02:20.4]} 24... Nb5 {[%clk 0:01:30.2]} 25. Kf3
{[%clk 0:02:01.1]} 25... Nd6 {[%clk 0:01:25.5]} 26. a3 {[%clk 0:01:55.8]} 26...
Ba5 {[%clk 0:01:15.1]} 27. Bh7 {[%clk 0:01:54.9]} 27... Rh8 {[%clk 0:01:13.5]}
28. Bd3 {[%clk 0:01:54.9]} 28... Kg7 {[%clk 0:01:14]} 29. Re2 {[%clk 0:01:46.8]}
29... Rhe8 {[%clk 0:01:13.4]} 30. Rc1 {[%clk 0:01:38.4]} 30... Bb6 {[%clk
0:01:12.4]} 31. b4 {[%clk 0:01:32.4]} 31... a5 {[%clk 0:00:54.9]} 32. b5 {[%clk
0:00:50.8]} 32... cxb5 {[%clk 0:00:54.9]} 33. Bxb5 {[%clk 0:00:50.3]} 33... Rb8
{[%clk 0:00:32.1]} 34. a4 {[%clk 0:00:50.4]} 34... Kf8 {[%clk 0:00:31.8]} 35.
Bd3 {[%clk 0:00:48.5]} 35... Rc7 {[%clk 0:00:31.4]} 36. Rxc7 {[%clk 0:00:43.5]}
36... Bxc7 {[%clk 0:00:32.3]} 37. Rc2 {[%clk 0:00:43.9]} 37... Bd8 {[%clk
0:00:32.5]} 38. Rc5 {[%clk 0:00:41]} 38... b6 {[%clk 0:00:29]} 39. Rxd5 {[%clk
0:00:41.4]} 39... Be7 {[%clk 0:00:27.9]} 40. e4 {[%clk 0:00:36.8]} 40... Rc8
{[%clk 0:00:26.4]} 41. e5 {[%clk 0:00:37.4]} 41... Ne8 {[%clk 0:00:24.5]} 42.
Nf5 {[%clk 0:00:33.1]} 42... Ba3 {[%clk 0:00:18.2]} 43. Rd7 {[%clk 0:00:26.2]}
43... fxe5 {[%clk 0:00:18.4]} 44. fxe5 {[%clk 0:00:25.3]} 44... Rc7 {[%clk
0:00:17.1]} 45. Rxc7 {[%clk 0:00:23.8]} 45... Nxc7 {[%clk 0:00:16.8]} 46. Bc4
{[%clk 0:00:22.3]} 46... Bc1 {[%clk 0:00:15.7]} 47. d5 {[%clk 0:00:22]} 47...
Bb2 {[%clk 0:00:11.8]} 48. Ke4 {[%clk 0:00:22.1]} 48... b5 {[%clk 0:00:08.7]}
49. Bxb5 {[%clk 0:00:21.3]} 49... Nxb5 {[%clk 0:00:08.7]} 50. axb5 {[%clk
0:00:22.2]} 50... a4 {[%clk 0:00:09.5]} 51. b6 {[%clk 0:00:22.2]} 51... f6
{[%clk 0:00:05.4]} 52. b7 {[%clk 0:00:20.1]} 52... Bxe5 {[%clk 0:00:05.5]} 53.
d6 {[%clk 0:00:20.8]} 53... Bxd6 {[%clk 0:00:05.6]} 54. Nxd6 {[%clk 0:00:21.7]}
54... Ke7 {[%clk 0:00:06.3]} 55. b8=Q {[%clk 0:00:22.2]} 1-0

[Event "*** SCC Grand Prix: Titled Tuesday Blitz"]
[Site "Chess.com"]
[Date "2020.10.06"]
[Round "8"]
[White "TomiLen"]
[Black "Balla_Tamas"]
[Result "1-0"]
[WhiteElo "2571"]
[BlackElo "2445"]
[TimeControl "180+1"]
[EndTime "11:36:01 PDT"]
[Termination "TomiLen won by resignation"]

1. d4 {[%clk 0:03:00.9]} 1... f5 {[%clk 0:02:58.8]} 2. Bg5 {[%clk 0:02:56.8]}
2... d5 {[%clk 0:02:57.7]} 3. e3 {[%clk 0:02:56]} 3... c6 {[%clk 0:02:56.8]} 4.
c4 {[%clk 0:02:54.8]} 4... Qa5+ {[%clk 0:02:47.2]} 5. Nc3 {[%clk 0:02:52.3]}
5... e6 {[%clk 0:02:47.3]} 6. Nf3 {[%clk 0:02:47.2]} 6... Nd7 {[%clk 0:02:46.5]}
7. Be2 {[%clk 0:02:44.9]} 7... Ngf6 {[%clk 0:02:46.4]} 8. O-O {[%clk 0:02:44.6]}
8... Bd6 {[%clk 0:02:46.5]} 9. Bf4 {[%clk 0:02:43.6]} 9... Qc7 {[%clk
0:02:37.1]} 10. Bxd6 {[%clk 0:02:36.7]} 10... Qxd6 {[%clk 0:02:38]} 11. Rb1
{[%clk 0:02:36.2]} 11... a5 {[%clk 0:02:34]} 12. a3 {[%clk 0:02:35.5]} 12... O-O
{[%clk 0:02:32.1]} 13. b4 {[%clk 0:02:35.4]} 13... axb4 {[%clk 0:02:31.9]} 14.
axb4 {[%clk 0:02:36.3]} 14... Ne4 {[%clk 0:02:32.1]} 15. Qc2 {[%clk 0:02:29.6]}
15... Ra3 {[%clk 0:02:26.3]} 16. Rb3 {[%clk 0:02:27.8]} 16... Ra7 {[%clk
0:02:16.2]} 17. b5 {[%clk 0:02:21.8]} 17... Ra5 {[%clk 0:01:51.9]} 18. bxc6
{[%clk 0:02:15.2]} 18... bxc6 {[%clk 0:01:50.9]} 19. cxd5 {[%clk 0:02:07.6]}
19... cxd5 {[%clk 0:01:38.7]} 20. Nb5 {[%clk 0:02:06.8]} 20... Qe7 {[%clk
0:01:38.4]} 21. Qc7 {[%clk 0:01:59.4]} 21... Ra2 {[%clk 0:01:35]} 22. Bd3 {[%clk
0:01:58.9]} 22... Qd8 {[%clk 0:01:16.1]} 23. g3 {[%clk 0:01:36]} 23... Ba6
{[%clk 0:01:14.9]} 24. Qc6 {[%clk 0:01:18.7]} 24... Rf6 {[%clk 0:01:09.9]} 25.
Ne5 {[%clk 0:00:41.5]} 25... Nf8 {[%clk 0:00:54.5]} 26. Bxe4 {[%clk 0:00:39]}
26... fxe4 {[%clk 0:00:51.8]} 27. Rbb1 {[%clk 0:00:23.9]} 27... Qa5 {[%clk
0:00:47.6]} 28. Nc3 {[%clk 0:00:18.8]} 28... Rc2 {[%clk 0:00:41.5]} 29. Ra1
{[%clk 0:00:17.7]} 29... Rxc3 {[%clk 0:00:15.1]} 30. Qxa6 {[%clk 0:00:17.4]}
30... Qxa6 {[%clk 0:00:13.4]} 31. Rxa6 {[%clk 0:00:18.3]} 31... Rc2 {[%clk
0:00:13.3]} 32. Ra8 {[%clk 0:00:17.8]} 32... g6 {[%clk 0:00:11]} 33. g4 {[%clk
0:00:15.5]} 33... h6 {[%clk 0:00:10.6]} 34. Kg2 {[%clk 0:00:14.6]} 34... Kg7
{[%clk 0:00:10.6]} 35. Kg3 {[%clk 0:00:13.7]} 35... g5 {[%clk 0:00:10.8]} 36.
Ra7+ {[%clk 0:00:13.9]} 36... Kg8 {[%clk 0:00:10.8]} 37. h3 {[%clk 0:00:13.3]}
37... Ng6 {[%clk 0:00:10]} 38. Nxg6 {[%clk 0:00:12.5]} 38... Rxg6 {[%clk
0:00:09.8]} 39. Ra8+ {[%clk 0:00:07.7]} 39... Kg7 {[%clk 0:00:09.5]} 40. Ra7+
{[%clk 0:00:08]} 40... Kg8 {[%clk 0:00:09.9]} 41. Rb1 {[%clk 0:00:07.5]} 41...
Rf6 {[%clk 0:00:09.8]} 42. Rb8+ {[%clk 0:00:07.4]} 42... Rf8 {[%clk 0:00:09.9]}
43. Rxf8+ {[%clk 0:00:07.7]} 43... Kxf8 {[%clk 0:00:10.1]} 44. Rh7 {[%clk
0:00:08.2]} 44... Rc8 {[%clk 0:00:07.7]} 45. Rh8+ {[%clk 0:00:07.7]} 45... Ke7
{[%clk 0:00:07.8]} 46. Rxc8 {[%clk 0:00:08.6]} 1-0